Cogmind - Beta 14 @@@ ROGUE MODE // 2025.03.30 @ 15:11:27 Player: Singularius Result: Destroyed by P-60 Hacker with Shock Rifle Performance ------------- Evolutions (3) 1500 Regions Visited (7) 1400 Robots Destroyed (61) 305 Value Destroyed (2173) 2173 Prototype IDs (9) 180 Alien Tech Used (0) 0 Bonus (186) 186 TOTAL SCORE: 5744 Bonus ------- High Alert Combat Kills 186 Cogmind --------- Core Integrity 0/700 Matter 290/300 Energy 90/100 System Corruption 20% Temperature Cool (0) Movement Flying (35) Location -7/Lower Caves Parts ------- > --- POWER (2) -------- (None) > --- PROPULSION (4) --- Cesium-ion Thruster > --- UTILITY (5) ------ Armor Integrity Analyzer > --- WEAPON (2) ------- Mining Claw > --- INVENTORY (5) ---- Trap Scanner Improved Medium Armor Plating Component Analysis Suite Shock Rifle Heavy Laser Peak State ------------ > --- POWER ------------ Nuclear Core Light Angular Momentum Engine > --- PROPULSION ------- Improved Carbon-fiber Leg Improved Carbon-fiber Leg Improved Carbon-fiber Leg Improved Carbon-fiber Leg > --- UTILITY ---------- Small Storage Unit Improved Sensor Array Improved Signal Interpreter Melee Analysis Suite Hardened Medium Armor Plating > --- WEAPON ----------- Greatsword > --- INVENTORY -------- Trap Scanner Component Analysis Suite Heavy EM Shotgun Heavy Laser Improved EM Pulse Cannon Improved EM Pulse Cannon Katana Makeshift Axe [Rating: 48] Favorites ----------- Power Light Ion Engine Engine Light Ion Engine Power Core Light Nuclear Core Propulsion Improved Carbon-fiber Leg Leg Improved Carbon-fiber Leg Wheel Compact Wheel Flight Unit Improved Flight Unit Utility Small Storage Unit Device Improved Sensor Array Storage Small Storage Unit Processor Melee Analysis Suite Hackware Makeshift System Shield Protection Core Shielding Weapon Makeshift Axe Energy Gun Spread Laser Energy Cannon Advanced Beam Cannon Ballistic Gun Shotgun Slashing Weapon Makeshift Axe Build | -11 -10 -10 -10 -9 -8 -7 -7 ------- Run | Yrd Mat Min Exi Min Mat Fac Low Slots Evolved 6 | . . . . . 4 2 . Power 1 | . . . . . . 1 . Propulsion 2 | . . . . . 2 . . Utility 3 | . . . . . 2 1 . Weapon . | . . . . . . . . Parts Attached 98 | 7 8 . . . 47 30 6 Power 18 | 1 1 . . . 7 8 1 Engine 9 | 1 1 . . . 7 . . Core 9 | . . . . . . 8 1 Reactor . | . . . . . . . . Propulsion 34 | 2 2 . . . 15 13 2 Treads . | . . . . . . . . Leg 20 | . . . . . 11 9 . Wheel 2 | 2 . . . . . . . Hover . | . . . . . . . . Flight 12 | . 2 . . . 4 4 2 Utility 25 | 1 1 . . . 18 4 1 Device 12 | . . . . . 10 2 . Storage 1 | 1 . . . . . . . Processor 4 | . . . . . 2 1 1 Hackware 1 | . . . . . 1 . . Protection 7 | . 1 . . . 5 1 . Artifact . | . . . . . . . . Weapon 21 | 3 4 . . . 7 5 2 Energy Gun 8 | 3 2 . . . 1 1 1 Energy Cannon 3 | . . . . . 2 1 . Ballistic Gun 3 | . 2 . . . 1 . . Ballistic Cannon . | . . . . . . . . Launcher . | . . . . . . . . Special Weapon . | . . . . . . . . Impact Weapon . | . . . . . . . . Slashing Weapon 7 | . . . . . 3 3 1 Piercing Weapon . | . . . . . . . . Special Melee Weapon . | . . . . . . . . Unidentified Prototypes 1 | . 1 . . . . . . Parts Lost 37 | . 2 . . . 8 20 7 Power 8 | . . . . . 1 5 2 Propulsion 14 | . . . . . 4 6 4 Utility 7 | . . . . . 2 5 . Weapon 8 | . 2 . . . 1 4 1 Highest Loss Streak 16 | . 2 . . . 2 16 6 To Critical Strikes 1 | . . . . . . 1 . Average Slot Usage (%) 88 | . 98 100 100 100 89 79 47 Engine 8 | . 14 14 14 14 9 1 . Core 2 | . . . . . . 10 7 Leg 16 | . . . . . 30 24 . Wheel 1 | . 9 . . . . . . Flight 11 | . 18 28 28 28 3 3 20 Device 2 | . . . . . 3 5 . Storage 9 | . 14 14 14 14 9 5 . Processor 3 | . . . . . 2 11 5 Hackware 2 | . . . . . 7 . . Protection 9 | . 13 14 14 14 9 5 . Energy Gun 5 | . 15 14 14 14 . . 5 Energy Cannon 2 | . . . . . 5 1 . Ballistic Gun 4 | . 12 14 14 14 . . . Slashing Weapon 5 | . . . . . 8 6 6 Peak Build Rating 48 | 6 14 14 15 15 39 48 24 Average Rating 26 | 4 11 14 14 15 33 37 16 On Entrance 14 | . 6 14 14 15 15 33 19 Naked Turns . | . . . . . . . . Heaviest Build 38 | 14 17 15 15 15 31 38 16 Greatest Support 72 | 26 26 10 10 10 71 72 16 Greatest Overweight (x) 3 | . 3 1 1 1 1 . 1 Average Overweight (x) . | . . 1 1 1 . . . Largest Inventory Capacity 8 | 8 8 8 8 8 8 8 5 Average Capacity 7 | 7 8 8 8 8 8 7 5 Most Carried 8 | 2 8 8 8 8 8 8 5 Average Carried 7 | 1 6 8 8 8 7 6 4 Final Capacity 8 | 8 8 8 8 8 8 5 5 Final Carried 8 | 2 8 8 8 8 8 5 5 Class Distribution -------------------- 79% | Mutant 7% | Scavenger-Gladiator 5% | Gladiator 3% | Scavenger-Sprinter Dominant Class ---------------- Mutant | -10/Materials Mutant | -10/Mines Mutant | -10/Exiles Mutant | -9/Mines Mutant | -8/Materials Scavenger-Gladiator | -7/Factory Sprinter | -7/Lower Caves Resources | -11 -10 -10 -10 -9 -8 -7 -7 ----------- Run | Yrd Mat Min Exi Min Mat Fac Low Matter Collected 1196 | 213 175 . . 24 426 314 44 Remotely . | . . . . . . . . Salvage Created 2557 | . 257 50 . 16 1576 658 . Parts 133 | . 19 1 . 3 79 31 . Haulers Intercepted 2 | . . . . . 2 . . Recyclers Shooed . | . . . . . . . . Parts Field Recycled . | . . . . . . . . Retrieved Matter . | . . . . . . . . Parts Self-Destructed . | . . . . . . . . Prevented . | . . . . . . . . Kills | -11 -10 -10 -10 -9 -8 -7 -7 ------- Run | Yrd Mat Min Exi Min Mat Fac Low Combat Hostiles Destroyed 53 | . 9 1 . 3 27 13 . Melee 39 | . . . . . 27 12 . Guns 13 | . 9 1 . 3 . . . Cannons 1 | . . . . . . 1 . Classes Destroyed 11 | . 4 . . . 6 1 . Worker 1 | . . . . . 1 . . Hauler 2 | . . . . . 2 . . Recycler 1 | . 1 . . . . . . Watcher 4 | . 1 . . . 2 1 . Swarmer 13 | . 7 . . 3 . 3 . Grunt 28 | . 2 1 . . 19 6 . Brawler 2 | . . . . . 1 1 . Duelist 3 | . . . . . 2 1 . Sentry 4 | . . . . . 4 . . Hunter 2 | . . . . . 1 1 . Programmer 1 | . . . . . . 1 . Best Kill Streak 5 | . 4 1 . 3 5 4 . Combat Bots Only 5 | . 3 1 . 3 5 4 . Max Kills in Single Turn 2 | . 2 1 . 1 1 1 . Gunslinging . | . . . . . . . . Exploded . | . . . . . . . . Melee 1 | . . . . . 1 1 . Uniques/NPCs Destroyed . | . . . . . . . . Combat | -11 -10 -10 -10 -9 -8 -7 -7 -------- Run | Yrd Mat Min Exi Min Mat Fac Low Hostile Shots Fired 486 | . 38 3 . 13 138 198 96 Missed 158 | . 10 . . 3 35 64 46 Damage Taken 4771 | . 363 41 . 79 1518 2230 540 Core 1122 | . 130 . . . 284 418 290 Absorbed by Shields . | . . . . . . . . Redirected to Shielding 50 | . 7 . . . 43 . . Core Remaining (%) 65 | 100 . . . 48 48 . . Volleys Fired 41 | . 18 2 . 5 5 6 5 Largest 2 | . 2 2 . 2 2 1 1 Hottest 132 | . 88 88 . 88 132 69 50 Shots Fired 70 | . 36 4 . 10 9 6 5 Gun 59 | . 36 4 . 10 4 . 5 Cannon 11 | . . . . . 5 6 . Launcher . | . . . . . . . . Special . | . . . . . . . . Kinetic 22 | . 12 2 . 5 3 . . Thermal 26 | . 18 2 . 5 1 . . Explosive . | . . . . . . . . Electromagnetic 22 | . 6 . . . 5 6 5 Robot Hit Streak 7 | . 7 6 . 5 2 3 . Robot Miss Streak 6 | . 6 2 . 3 1 3 . Penetration Max . | . . . . . . . . Secondary Targets 2 | . 1 . . 1 . . . Max Gunslinging Chain 1 | . 1 . . 1 . . . Shots Hit Robots 167 | . 32 3 . 8 86 38 . Core Hits 88 | . 23 6 . 8 35 16 . Critical Kills . | . . . . . . . . Critical Parts Destroyed . | . . . . . . . . Critical Strikes 14 | . . . . . 9 5 . Corrupt 1 | . . . . . 1 . . Sever 13 | . . . . . 8 5 . Melee Attacks 169 | . . . . . 120 49 . Impact . | . . . . . . . . Slashing 169 | . . . . . 120 49 . Piercing . | . . . . . . . . Sneak Attacks 2 | . . . . . 2 . . Combat Hostiles . | . . . . . . . . Follow-up Attacks 1 | . . . . . . 1 . Damage Inflicted 5258 | . 380 53 . 106 3161 1558 . Guns 552 | . 357 53 . 106 36 . . Cannons 166 | . . . . . 119 47 . Explosions 23 | . 23 . . . . . . Melee 4517 | . . . . . 3006 1511 . Ramming . | . . . . . . . . Kinetic 225 | . 130 21 . 38 36 . . Thermal 296 | . 196 32 . 68 . . . Explosive . | . . . . . . . . Electromagnetic 220 | . 54 . . . 119 47 . Impact . | . . . . . . . . Slashing 4517 | . . . . . 3006 1511 . Piercing . | . . . . . . . . Highest Corruption 20 | . . . . . . 20 20 Average Corruption 10 | . . . . . . 7 20 Corruption Purged . | . . . . . . . . Corruption Blocked . | . . . . . . . . Effects 33 | . . . . . . 22 11 Message Errors 10 | . . . . . . 8 2 Matter Fused 4 | . . . . . . 3 1 Heat Flow Errors 3 | . . . . . . 2 1 Energy Discharges 3 | . . . . . . 1 2 Parts Rejected 2 | . . . . . . 1 1 Parts Fused 1 | . . . . . . . 1 Data Loss (minor) 5 | . . . . . . 4 1 Misdirections 5 | . . . . . . 3 2 Overload Shots . | . . . . . . . . Overflow Damage 157 | . 5 . . . 130 22 . Projectiles 44 | . . . . . 44 . . Explosions 5 | . 5 . . . . . . Melee 108 | . . . . . 86 22 . Knockbacks . | . . . . . . . . Impact . | . . . . . . . . Kinetic . | . . . . . . . . Secondary . | . . . . . . . . Self-Inflicted Damage 40 | . 40 . . . . . . Shots 1 | . 1 . . . . . . Rammed . | . . . . . . . . Targets Rammed . | . . . . . . . . Kicked . | . . . . . . . . Crushed . | . . . . . . . . Highest Temperature 234 | . 162 75 . 113 63 170 234 Average Temperature 58 | . 60 39 . 63 23 44 120 Received Heat Transfer 1593 | . 12 24 . . 837 612 108 Siege Activations . | . . . . . . . . Robots Corrupted . | . . . . . . . . Combat Hostiles . | . . . . . . . . Parts Fried 1 | . . . . . 1 . . Impact Corruptions . | . . . . . . . . Robots Melted . | . . . . . . . . Combat Hostiles . | . . . . . . . . Parts Melted 1 | . 1 . . . . . . Heat Transferred 455 | . 330 40 . 85 . . . Parts Sabotaged . | . . . . . . . . Parts Stolen . | . . . . . . . . Parts Stripped . | . . . . . . . . Power Chain Reactions 1 | . 1 . . . . . . Alert | -11 -10 -10 -10 -9 -8 -7 -7 ------- Run | Yrd Mat Min Exi Min Mat Fac Low Peak Influence 550 | . 283 101 . 70 513 550 . Initial 218 | . . 56 . . 27 218 . Average 260 | . 137 83 . 5 337 334 . Maximum Alert Level 2 | . 1 . . . 2 2 . Low Security (%) 35 | 100 79 100 . 100 19 . . Level 1 33 | . 20 . . . 33 59 . Level 2 30 | . . . . . 46 40 . Level 3 . | . . . . . . . . Level 4 . | . . . . . . . . Level 5 . | . . . . . . . . High Security . | . . . . . . . . Max Security . | . . . . . . . . Squads Dispatched 8 | . 1 . . . 3 4 . Investigation 3 | . 1 . . . . 2 . Extermination 1 | . . . . . . 1 . Reinforcement 4 | . . . . . 3 1 . Assault . | . . . . . . . . Garrison . | . . . . . . . . Intercept . | . . . . . . . . Searches Triggered . | . . . . . . . . Construction Impeded . | . . . . . . . . Haulers Reinforced . | . . . . . . . . Active Scanning Responses . | . . . . . . . . Cargo Convoy Interrupts . | . . . . . . . . Stealth | -11 -10 -10 -10 -9 -8 -7 -7 --------- Run | Yrd Mat Min Exi Min Mat Fac Low Distress Signals 6 | . 1 . . . 3 2 . Communications Jammed 5 | . . . . . 5 . . Distress Signals 5 | . . . . . 5 . . Times Spotted 135 | . 19 2 . 3 47 54 10 Peak Tracking Total 13 | . 3 2 . 3 5 13 6 Tactical Retreats 25 | . 1 1 . . 6 12 5 Traps | -11 -10 -10 -10 -9 -8 -7 -7 ------- Run | Yrd Mat Min Exi Min Mat Fac Low Traps Triggered 6 | . 1 . . . 3 2 . Indirectly . | . . . . . . . . Trap Hack Attempts . | . . . . . . . . Triggered . | . . . . . . . . Disarmed . | . . . . . . . . Reprogrammed . | . . . . . . . . Reused . | . . . . . . . . Traps Extracted . | . . . . . . . . Installed . | . . . . . . . . Triggered . | . . . . . . . . Machines | -11 -10 -10 -10 -9 -8 -7 -7 ---------- Run | Yrd Mat Min Exi Min Mat Fac Low Machines Disabled 1 | . . . . . . 1 . Max in Single Turn 1 | . . . . . . 1 . Machines Repaired . | . . . . . . . . Machines Dismantled . | . . . . . . . . Machines Sabotaged . | . . . . . . . . Overloaded Fab Kills . | . . . . . . . . Hacking | -11 -10 -10 -10 -9 -8 -7 -7 --------- Run | Yrd Mat Min Exi Min Mat Fac Low Machines Accessed 17 | . 7 . . . 7 3 . Terminals 10 | . 5 . . . 4 1 . Fabricators 1 | . . . . . . 1 . Repair Stations 1 | . . . . . . 1 . Recycling Units 3 | . 2 . . . 1 . . Scanalyzers 2 | . . . . . 2 . . Garrison Access . | . . . . . . . . Total Hacks 50 | . 18 . . . 25 7 . Successful 24 | . 9 . . . 14 1 . Failed 26 | . 9 . . . 11 6 . Catastrophic 5 | . 2 . . . 1 2 . Database Lockouts . | . . . . . . . . Manual 1 | . . . 1 . . . . Terminals 29 | . 14 . . . 13 2 . Fabricators 4 | . . . . . . 4 . Repair Stations 1 | . . . . . . 1 . Recycling Units 6 | . 4 . . . 2 . . Scanalyzers 10 | . . . . . 10 . . Garrison Access . | . . . . . . . . Terminal Hacks 13 | . 7 . . . 6 . . Record 1 | . . . . . 1 . . Robot Analysis 1 | . . . . . 1 . . Prototype ID Bank 5 | . 3 . . . 2 . . Alert Level 1 | . 1 . . . . . . Locate Traps 2 | . 1 . . . 1 . . Registered Components 2 | . 1 . . . 1 . . Zone Layout 1 | . 1 . . . . . . Fabricator Hacks 1 | . . . . . . 1 . Load Schematic 1 | . . . . . . 1 . Repair Station Hacks . | . . . . . . . . Recycling Unit Hacks 3 | . 2 . . . 1 . . Report Inventory 3 | . 2 . . . 1 . . Scanalyzer 7 | . . . . . 7 . . Insert Component 3 | . . . . . 3 . . Analyze 4 | . . . . . 4 . . Garrison Access Hacks . | . . . . . . . . Unauthorized Hacks . | . . . . . . . . Terminals . | . . . . . . . . Fabricators . | . . . . . . . . Repair Stations . | . . . . . . . . Recycling Units . | . . . . . . . . Scanalyzers . | . . . . . . . . Garrison Access . | . . . . . . . . Data Cores Recovered . | . . . . . . . . Used . | . . . . . . . . Hacking Detections 12 | . 4 . . . 5 3 . Full Trace Events 2 | . . . . . . 2 . Feedback Events . | . . . . . . . . Feedback Blocked . | . . . . . . . . Robot Schematics Acquired . | . . . . . . . . Robots Built . | . . . . . . . . Authchips . | . . . . . . . . Time . | . . . . . . . . Total Robot Build Rating . | . . . . . . . . Part Schematics Acquired 3 | . . . . . 3 . . Parts Built . | . . . . . . . . Authchips . | . . . . . . . . Time . | . . . . . . . . Total Part Build Rating . | . . . . . . . . Parts Repaired . | . . . . . . . . Time . | . . . . . . . . Parts Recycled . | . . . . . . . . Recycled Matter . | . . . . . . . . Retrieved Matter . | . . . . . . . . Retrieved Components . | . . . . . . . . Parts Scanalyzed 3 | . . . . . 3 . . Part Schematics Acquired 3 | . . . . . 3 . . Parts Damaged . | . . . . . . . . Bothacking | -11 -10 -10 -10 -9 -8 -7 -7 ------------ Run | Yrd Mat Min Exi Min Mat Fac Low Used RIF Installer . | . . . . . . . . Robots Hacked . | . . . . . . . . Non-combat . | . . . . . . . . Combat . | . . . . . . . . Robot Hacks Applied . | . . . . . . . . Relay Couplers Released . | . . . . . . . . Fabnet Peak Effective % . | . . . . . . . . Robots Rewired . | . . . . . . . . Allies Hacked . | . . . . . . . . Hacks Repelled . | . . . . . . . . Allies | -11 -10 -10 -10 -9 -8 -7 -7 -------- Run | Yrd Mat Min Exi Min Mat Fac Low Total Allies . | . . . . . . . . Largest Group . | . . . . . . . . Highest-Rated Group . | . . . . . . . . Highest-Rated Ally . | . . . . . . . . Total Orders . | . . . . . . . . Ally Attacks . | . . . . . . . . Total Damage . | . . . . . . . . Kills . | . . . . . . . . Allies Corrupted . | . . . . . . . . Allies Melted . | . . . . . . . . Intel | -11 -10 -10 -10 -9 -8 -7 -7 ------- Run | Yrd Mat Min Exi Min Mat Fac Low Robot Analysis Total 1 | . . . . . 1 . . Derelict Logs Recovered 4 | . . 1 . 1 . . 2 Drone Launches . | . . . . . . . . Drone Recoveries . | . . . . . . . . Exploration | -11 -10 -10 -10 -9 -8 -7 -7 ------------- Run | Yrd Mat Min Exi Min Mat Fac Low Turns Passed 4346 | 48 566 236 394 287 1596 998 221 Spaces Moved 3839 | 41 463 197 365 252 934 936 651 Core 65 | 2 . . . . . . 63 Treads . | . . . . . . . . Legs 1235 | . . . . . 729 506 . Wheels 213 | 39 174 . . . . . . Hover . | . . . . . . . . Flight 2326 | . 289 197 365 252 205 430 588 Fastest Speed 26 | 50 90 107 107 107 34 26 26 Average Speed 85 | 88 100 107 107 107 104 78 30 Slowest Speed 255 | 100 255 107 107 107 130 125 109 Overloaded Moves . | . . . . . . . . Propulsion Burnouts . | . . . . . . . . Robots Hopped 7 | . . . . . . 6 1 Cave-ins Triggered . | . . . . . . . . Exploration Rate (%) 56 | 3 79 55 86 66 69 21 72 Regions Visited 7 Branch Regions 4 Pre-discovered Areas 2 | . . . . 1 . . 1 Known Exits Taken 1 | . . 1 . . . . . Unknown Exits Taken 6 | 1 1 . 1 1 1 1 . Scrap Searched 4 | . . . . 1 . . 3 Spaces Dug . | . . . . . . . . Terrain Destroyed 2 | . 2 . . . . . . Melee . | . . . . . . . . Projectile . | . . . . . . . . AOE 2 | . 2 . . . . . . Terrain Rammed . | . . . . . . . . Walls Destroyed . | . . . . . . . . Machines Disabled . | . . . . . . . . Actions | -11 -10 -10 -10 -9 -8 -7 -7 --------- Run | Yrd Mat Min Exi Min Mat Fac Low Total 4623 | 49 526 218 370 259 1435 1101 665 Wait 371 | . 20 20 . 3 267 60 1 Move 3818 | 40 462 196 364 251 933 923 649 Hop 7 | . . . . . . 6 1 Pick Up 51 | 2 11 . 3 . 24 11 . Fast Attach 41 | 6 2 . . . 16 12 5 Attach 28 | . 1 . . . 15 11 1 Detach 13 | . . . . . 9 2 2 Swap 29 | 1 5 . . . 16 7 . Drop 55 | . 7 . 3 . 30 14 1 Fire 41 | . 18 2 . 5 5 6 5 Melee 168 | . . . . . 120 48 . Ram . | . . . . . . . . Kick . | . . . . . . . . Crush . | . . . . . . . . Escape Stasis 1 | . . . . . . 1 . Rewire . | . . . . . . . . Trap . | . . . . . . . . Miscellaneous . | . . . . . . . . Route ------- -11/Scrapyard -10/Materials (discovered 4 exits: [*Mat x2] / [*Min x2]) -10/Mines -10/Exiles -9/Mines -8/Materials -7/Factory -7/Lower Caves History --------- Turn | Location | Event 8 | -11/Scrapyard | Discovered new exit (range 15) 49 | -11/Scrapyard | Entered Materials 331 | -10/Materials | Build established: Mutant 341 | -10/Materials | Core integrity fell below 50% 381 | -10/Materials | Discovered new exit (range 15) 481 | -10/Materials | Discovered new exit (range 15) 525 | -10/Materials | Discovered new exit (range 14) 597 | -10/Materials | Discovered new exit (range 6) 615 | -10/Materials | Entered Mines 677 | -10/Mines | Met a Derelict bent on vengeance 689 | -10/Mines | Identified exit to Exiles 752 | -10/Mines | YI-UF0 nonchalantly dropped a Grenade Launcher on the ground 847 | -10/Mines | Deemed a non-threat by the Exiles lab entrance 851 | -10/Mines | Entered Exiles 851 | -10/Exiles | Found Exiles lab destroyed 1205 | -10/Exiles | Discovered new exit (range 10) 1245 | -10/Exiles | Entered Mines 1246 | -9/Mines | Learned location of Storage (-8) 1327 | -9/Mines | Learned Materials interactive machine intel 1339 | -9/Mines | Found a hidden stash of uninstalled traps 1500 | -9/Mines | Discovered new exit (range 10) 1532 | -9/Mines | Entered Materials 1532 | -8/Materials | Evolved 4 slots: Propulsion x2, Utility x2 1533 | -8/Materials | Loaded intel: 19 interactive machine locations 3060 | -8/Materials | Core integrity fell below 50% 3095 | -8/Materials | Discovered new exit (range 15) 3128 | -8/Materials | Entered Factory 3128 | -7/Factory | Evolved 2 slots: Power x1, Utility x1 3914 | -7/Factory | System corruption reached 10% 3974 | -7/Factory | Lost 16 parts (4p4n5u3w) 3983 | -7/Factory | Core integrity fell below 50% 4121 | -7/Factory | Discovered new exit (range 5) 4126 | -7/Factory | Entered Lower Caves 4190 | -7/Lower Caves | Learned location of 1 exit from Factory 4226 | -7/Lower Caves | Attracted the attention of an 0b10 outpost 4262 | -7/Lower Caves | Spotted B-75 Beast 4276 | -7/Lower Caves | Attracted the attention of an 0b10 checkpoint 4313 | -7/Lower Caves | Core integrity fell below 20% 4343 | -7/Lower Caves | Lost 6 parts (2p3n1w) 4347 | -7/Lower Caves | Destroyed by P-60 Hacker with Shock Rifle Last Messages --------------- System corrupted: Lgt. Nuclear Core fused. Y-54 Guardian: "INTERCEPTING UNREGISTERED DERELICT." 8ZMV:, |IOGB:ND=G44TSZCIVP0JKXBQ =V Lgt. Nuclear Core destroyed. System corrupted: VTOL Module rejected. Acquired VTOL Module. Hvy. EM Shotgun destroyed. VTOL Module destroyed. Lgt. Nuclear Core destroyed. Critical hit (Burn: +37). 9O&SLWT98F